bitfinex/quotes_ETHUSD_20250112
["timestamp","ask_amount","ask_price","bid_price","bid_amount"]
[1736649199752,0.78689623,3290.8,3290.7,19.97290209]
[1736649201137,0.00729623,3290.8,3290.7,19.97290209]
[1736649201741,0.00729623,3290.8,3290.7,21.32670209]
[1736649213748,0.00729623,3290.8,3290.7,20.52290209]
[1736649220055,0.00729623,3290.8,3290.7,20.47290209]
[1736649221580,0.81209623,3290.8,3290.7,20.47290209]
[1736649221773,0.81209623,3290.8,3290.7,19.92290209]
[1736649221974,0.81209623,3290.8,3290.7,17.79570209]
[1736649222929,0.81209623,3290.8,3290.7,17.18723199]
[1736649225929,0.81209623,3290.8,3290.7,17.17223199]
[1736649226110,0.81209623,3290.8,3290.7,8.37223199]
[1736649226553,0.81209623,3290.8,3290.7,5.35723199]
[1736649227060,0.81209623,3290.8,3290.7,8.35723199]
[1736649229766,0.81209623,3290.8,3290.7,5.35723199]
[1736649233188,3.23315385,3290.8,3290.7,0.03723199]
[1736649233469,0.8048,3290.7,3290.2,0.0075]
[1736649233679,0.8048,3290.7,3290.3,0.03743025]
[1736649233887,0.8048,3290.7,3290.2,0.0075]
[1736649234178,0.8048,3290.7,3290.3,0.03743025]
[1736649234385,1.12811539,3290.7,3290.3,0.03743025]
[1736649234524,0.8048,3290.6,3290.2,0.0075]
[1736649234727,0.8048,3290.6,3290.4,0.03735552]
[1736649234975,0.8048,3290.6,3290.3,0.03743025]
[1736649235182,0.8048,3290.6,3290.5,0.03728081]
[1736649235335,0.8048,3290.6,3290.4,0.03735552]
[1736649235682,0.8048,3290.6,3290.5,0.03728081]
[1736649235879,0.8048,3290.5,3290.2,0.0075]
[1736649236179,0.8048,3290.5,3290.3,0.03743025]
[1736649236543,0.8048,3290.5,3290.2,0.0075]
[1736649236752,0.8048,3290.5,3290.4,0.03735552]
[1736649237261,0.8048,3290.5,3290.2,0.0075]
[1736649237475,0.8048,3290.5,3290.3,0.03743025]
[1736649237627,0.8048,3290.5,3290.2,0.0075]
[1736649237827,0.8048,3290.5,3290.3,0.03743025]
[1736649238077,0.293202,3290.5,3290.2,0.0075]
[1736649238285,0.8048,3290.4,3290.3,0.03743025]
[1736649238463,0.8048,3290.4,3290.2,0.0075]
[1736649238647,0.8048,3290.4,3290.3,0.03743025]
[1736649238973,0.8048,3290.4,3290.2,0.0075]
[1736649239179,0.8048,3290.4,3290.3,0.03743025]
[1736649239598,0.8048,3290.4,3290.2,0.0075]
[1736649239734,0.8048,3290.4,3290.3,0.03743025]
[1736649240136,0.8048,3290.4,3290.2,0.0075]
[1736649240364,0.8048,3290.4,3290.3,0.03743025]
[1736649240753,0.8048,3290.4,3290.2,0.0075]
[1736649240961,0.8048,3290.4,3290.3,0.03743025]
[1736649241661,0.8048,3290.4,3290.2,0.0075]
[1736649241982,0.8048,3290.4,3290.3,0.03743025]
[1736649242663,0.8048,3290.4,3290.2,0.0075]
[1736649242843,0.8048,3290.4,3290.3,0.03753085]
[1736649243051,0.8048,3290.4,3290.2,0.0075]
[1736649243279,0.8048,3290.4,3290.3,0.03753085]
[1736649243530,0.8048,3290.4,3290.2,0.0075]
[1736649243731,0.8048,3290.4,3290.3,0.03753085]
[1736649244147,0.8048,3290.4,3290.2,0.0075]
[1736649244365,0.8048,3290.4,3290.3,0.03753085]
[1736649245085,0.8048,3290.4,3290.2,0.0075]
[1736649245230,0.8048,3290.4,3290.3,0.03753085]
[1736649245434,0.8048,3290.4,3290.2,0.0075]
[1736649245663,0.8048,3290.4,3290.3,0.03753085]
[1736649245898,0.8048,3290.4,3290.2,0.0075]
[1736649246045,0.8048,3290.4,3290.3,0.03753085]
[1736649246250,0.8048,3290.4,3290.2,0.0075]
[1736649246434,0.8048,3290.4,3290.3,0.03753085]
[1736649246634,0.8048,3290.4,3290.2,0.0075]
[1736649246981,0.8048,3290.4,3290.3,0.03753085]
[1736649247353,0.8048,3290.4,3290.2,0.0075]
[1736649247552,0.8048,3290.4,3290.3,0.03753085]
[1736649247953,0.8048,3290.4,3290.2,0.0075]
[1736649248171,0.8048,3290.4,3290.3,0.03753085]
[1736649248553,0.8048,3290.4,3290.2,0.0075]
[1736649248855,0.8048,3290.4,3290.3,0.03753085]
[1736649249088,0.8048,3290.4,3290.2,0.0075]
[1736649249389,0.8048,3290.4,3290.3,0.03753085]
[1736649249685,0.8048,3290.4,3290.2,0.0075]
[1736649249982,0.8048,3290.4,3290.3,0.03753085]
[1736649250781,0.8048,3290.4,3290.2,0.0075]
[1736649250941,0.8048,3290.4,3290.3,0.03753085]
[1736649251287,0.8048,3290.4,3290.2,0.0075]
[1736649251490,0.8048,3290.4,3290.3,0.03753085]
[1736649251654,0.8048,3290.4,3290.2,0.0075]
[1736649251860,0.8048,3290.4,3290.3,0.03753085]
[1736649252057,0.8048,3290.4,3290.2,0.0075]
[1736649252258,0.8048,3290.4,3290.3,0.03753085]
[1736649252490,0.8048,3290.4,3290.2,0.0075]
[1736649252789,0.8048,3290.4,3290.3,0.03753085]
[1736649253094,0.8048,3290.4,3290.2,0.0075]
[1736649253296,0.00729623,3290.8,3290.5,0.015]
[1736649253457,0.00729623,3290.8,3290.7,6.5415281]
[1736649253637,0.00729623,3290.8,3290.7,11.70607819]
[1736649253987,0.00729623,3290.8,3290.7,8.37985009]
[1736649255306,0.00729623,3290.8,3290.7,9.57887819]
[1736649255605,0.00729623,3290.8,3290.7,11.06969645]
[1736649257378,0.00729623,3290.8,3290.7,9.87066835]
[1736649258273,0.00729623,3290.8,3290.7,8.37985009]
[1736649259215,0.00729623,3290.8,3290.7,8.35735009]
[1736649259216,0.77109623,3290.8,3290.7,8.35735009]
[1736649260607,0.77109623,3290.8,3290.7,5.35735009]
[1736649263279,0.77109623,3290.8,3290.7,0.03735009]
[1736649263594,0.77109623,3290.8,3290.1,8.32]
[1736649263595,0.77109623,3290.8,3290.2,0.04538989]
[1736649263795,0.77109623,3290.8,3290.7,0.03718387]
[1736649264004,1.06091185,3290.8,3290.2,0.015]
[1736649264611,1.06091185,3290.8,3290.3,0.03748273]
[1736649264906,1.06091185,3290.8,3290.2,0.015]
[1736649265064,0.77109623,3290.8,3290.3,0.03748273]
[1736649265563,0.77109623,3290.8,3290.2,0.04538992]
[1736649265777,0.77109623,3290.8,3290.4,0.03740801]
[1736649266055,0.77109623,3290.8,3290.3,0.03748273]
[1736649266209,0.77109623,3290.8,3290.5,0.03743829]
[1736649266518,0.77109623,3290.8,3290.6,0.03736358]
[1736649266806,0.77109623,3290.8,3290.2,2.17289992]
[1736649267278,0.77109623,3290.8,3290.3,0.03764022]
[1736649267460,0.77109623,3290.8,3290.2,2.17289992]
[1736649267713,0.77109623,3290.8,3290.3,0.03764022]
[1736649267864,0.77109623,3290.8,3290.2,2.17289992]
[1736649268266,0.77109623,3290.8,3290.3,0.03761835]
[1736649268498,0.77109623,3290.8,3290.2,0.04538992]
[1736649268701,0.77109623,3290.8,3290.3,0.03761835]
[1736649268882,0.77109623,3290.8,3290.2,0.015]
[1736649269080,0.77109623,3290.8,3290.3,0.03761835]
[1736649269279,0.77109623,3290.8,3290.4,3.0]
[1736649269484,0.77109623,3290.8,3290.5,0.03746891]
[1736649271436,1.06090885,3290.8,3290.5,0.03746891]
[1736649278700,0.29710885,3290.8,3290.5,0.03746891]
[1736649278901,0.7843,3290.7,3290.5,0.03746891]
[1736649279108,2.91157,3290.6,3290.5,0.03746891]
[1736649279566,2.91157,3290.6,3289.9,8.32]
[1736649279710,2.91157,3290.6,3290.5,0.03751265]
[1736649279910,2.91157,3290.6,3289.9,8.32]
[1736649280143,0.291157,3290.5,3290.0,0.0075]
[1736649286614,0.7843,3290.6,3290.0,0.0075]
[1736649287645,0.7843,3290.6,3290.1,0.03759154]
[1736649290260,2.91158,3290.6,3290.1,0.03759154]
[1736649291164,2.12743,3290.4,3290.1,0.03759154]
[1736649291329,2.13446623,3290.8,3289.9,5.32]
[1736649291330,0.7931,3290.3,3289.9,5.32]
[1736649291530,3.11981605,3290.3,3290.2,0.03763931]
[1736649291862,3.32981605,3290.3,3289.9,5.32]
[1736649292070,3.32981605,3290.3,3290.2,0.03777494]
[1736649292591,3.32981605,3290.3,3289.9,5.32]
[1736649292784,3.32981605,3290.3,3290.2,0.03777494]
[1736649293093,3.32981605,3290.3,3289.9,5.32]
[1736649293261,3.32981605,3290.3,3290.2,0.03777494]
[1736649293583,3.32981605,3290.3,3289.9,5.32]
[1736649293885,3.32981605,3290.3,3290.2,0.03777494]
[1736649294058,3.32981605,3290.3,3289.9,5.32]
[1736649294260,3.32981605,3290.3,3290.0,0.03804255]
[1736649296494,0.7711,3290.7,3290.1,1.19926048]
[1736649296643,0.00729623,3290.8,3290.4,2.00396048]
[1736649296989,0.00729623,3290.8,3290.5,0.03769955]
[1736649298437,0.00729623,3290.8,3290.4,0.015]
[1736649298682,0.00729623,3290.8,3290.6,0.03762484]
[1736649298867,0.00729623,3290.8,3290.5,5.35748952]
[1736649299089,0.00729623,3290.8,3290.7,0.03729633]
[1736649299313,0.00729623,3290.8,3290.6,0.03737104]
[1736649299454,0.00729623,3290.8,3290.6,4.39400814]
[1736649299790,0.00729623,3290.8,3290.7,0.03729195]
[1736649300981,0.00729623,3290.8,3290.7,0.05979195]
[1736649301490,0.00729623,3290.8,3290.7,16.31449195]
[1736649301693,0.00729623,3290.8,3290.7,17.13389195]
[1736649301992,0.00729623,3290.8,3290.7,19.25364092]
[1736649304696,0.00729623,3290.8,3290.7,22.25364092]
[1736649305010,0.00729623,3290.8,3290.7,22.80364092]
[1736649308100,0.7974,3292.7,3292.1,3.015]
[1736649308252,0.7974,3292.7,3292.3,0.015]
[1736649308447,0.7974,3292.9,3292.3,0.32103717]
[1736649308693,0.7974,3292.9,3292.5,0.0075]
[1736649309208,0.7974,3292.9,3292.6,0.03535729]
[1736649310308,2.9232,3292.9,3292.6,0.03535729]
[1736649310597,2.94511,3292.7,3291.9,0.015]
[1736649310909,0.294511,3292.6,3292.0,0.03462903]
[1736649312788,2.12603,3292.6,3292.0,0.03462903]
[1736649313103,0.8192,3292.5,3292.0,0.03462903]
[1736649313402,1.0292,3292.5,3292.0,0.03462903]
[1736649313598,3.15527,3292.5,3292.0,0.03462903]
[1736649314202,2.12611,3292.4,3292.0,0.03462903]
[1736649314500,2.441711,3292.3,3291.8,3.0]
[1736649314710,2.441711,3292.3,3292.1,0.0347598]
[1736649314858,2.441711,3292.3,3291.8,3.0]
[1736649315203,0.315531,3292.3,3291.8,3.0]
[1736649315407,3.15525,3292.5,3291.8,3.0]
[1736649315707,3.15525,3292.5,3291.9,0.0349091]
[1736649319059,2.12611,3292.4,3291.9,0.0349091]
[1736649319503,2.12611,3292.4,3291.8,3.0]
[1736649320004,2.12611,3292.4,3291.7,5.32]
[1736649320005,2.12631,3292.1,3291.9,0.0349091]
[1736649320205,3.107091,3292.0,3291.7,5.32]
[1736649320391,3.107091,3292.0,3291.8,0.03498375]
[1736649320577,3.107091,3292.0,3291.7,5.32]
[1736649320775,3.107091,3292.0,3291.8,0.03505369]
[1736649320776,2.12645,3291.9,3291.8,0.03505369]
[1736649321284,2.12659,3291.7,3291.2,3.0]
[1736649321476,2.33659,3291.7,3291.2,3.0]
[1736649321678,2.33659,3291.7,3291.3,0.03570237]
[1736649322215,2.570249,3291.7,3291.4,0.03562769]
[1736649322511,2.570249,3291.7,3291.2,3.0]
[1736649322715,2.570249,3291.7,3291.5,0.03555302]
[1736649322862,2.570249,3291.7,3291.2,3.0]
[1736649323063,2.570249,3291.7,3291.6,0.03547835]
[1736649323263,2.570249,3291.7,3291.2,3.0]
[1736649323464,2.570249,3291.7,3291.6,0.03547835]
[1736649323666,2.570249,3291.7,3291.2,3.0]
[1736649324193,2.570249,3291.7,3291.3,0.03588163]
[1736649324398,2.570249,3291.7,3291.2,3.0]
[1736649324717,2.570249,3291.7,3291.3,0.03588163]
[1736649325062,2.570249,3291.7,3291.2,3.0]
[1736649325262,2.570249,3291.7,3291.4,0.03580695]
[1736649325610,2.570249,3291.7,3291.5,0.03573228]
[1736649325810,2.570249,3291.7,3291.2,3.0]
[1736649325958,2.33659,3291.7,3291.3,0.03588163]
[1736649326163,2.33659,3291.7,3291.2,3.0]
[1736649326493,2.33659,3291.7,3291.3,0.03588163]
[1736649326875,2.33659,3291.7,3291.2,3.0]
[1736649327078,2.33659,3291.7,3291.4,0.03581132]
[1736649327309,2.33659,3291.7,3291.3,0.035886]
[1736649327310,2.570249,3291.7,3291.3,0.035886]
[1736649327458,2.570249,3291.7,3291.5,0.03573665]
[1736649327661,2.570249,3291.7,3291.4,0.03581132]
[1736649327862,2.570249,3291.7,3291.6,0.03566198]
[1736649328197,2.570249,3291.7,3291.2,3.0]
[1736649328376,2.570249,3291.7,3291.3,0.035886]
[1736649328701,2.570249,3291.7,3291.2,3.0]
[1736649328903,2.570249,3291.7,3291.4,0.03582007]
[1736649329062,2.570249,3291.7,3291.3,0.03589474]
[1736649329264,2.570249,3291.7,3291.5,0.0357454]
[1736649329506,2.570249,3291.7,3291.4,0.03582007]
[1736649329714,2.570249,3291.7,3291.6,0.03567073]
[1736649329913,2.570249,3291.7,3291.5,0.0357454]
[1736649330059,2.570249,3291.7,3291.6,0.03567073]
[1736649330414,2.570249,3291.7,3291.2,3.0]
[1736649330610,2.33659,3291.7,3291.3,0.03589474]
[1736649330826,2.12663,3291.6,3291.2,3.0]
[1736649330965,2.89479,3291.5,3291.3,0.03589474]
[1736649331164,2.89479,3291.5,3291.2,3.0]
[1736649331382,2.89479,3291.5,3291.3,0.03609588]
[1736649331741,2.89479,3291.5,3291.1,5.32]
[1736649331883,3.205269,3291.5,3291.1,5.32]
[1736649332395,1.078579,3291.5,3291.1,5.32]
[1736649332573,0.7681,3291.5,3290.8,3.0]
[1736649332778,2.12682,3291.3,3290.8,3.0]
[1736649337865,0.7681,3291.5,3290.8,3.0]
[1736649337866,2.12688,3291.2,3290.8,3.0]
[1736649338169,0.7681,3291.1,3290.8,3.0]
[1736649338372,2.89508,3291.1,3290.8,3.0]
[1736649338661,2.89508,3291.1,3290.7,5.32]
[1736649338858,3.184588,3291.1,3290.7,5.32]
[1736649339722,0.8303,3290.8,3290.3,0.0075]
[1736649339910,1.0423,3290.8,3290.3,0.0075]
[1736649340109,1.0423,3290.8,3290.3,3.015]
[1736649349676,3.16944,3290.8,3290.3,3.015]
[1736649353786,2.12729,3290.6,3290.3,3.0]
[1736649353968,0.8303,3290.5,3290.3,3.0]
[1736649354380,0.8303,3290.5,3290.2,5.32]
[1736649354885,0.8303,3290.5,3289.8,0.8247]
[1736649355099,2.12742,3290.4,3289.8,0.8247]
[1736649356791,0.8303,3290.5,3289.8,0.8247]
[1736649357004,0.8303,3290.5,3289.8,1.21095932]
[1736649361208,0.8315,3291.2,3290.3,0.015]
[1736649361544,2.95841,3291.2,3290.3,0.015]
[1736649361683,0.211,3291.1,3290.3,0.015]
[1736649361884,0.211,3291.1,3290.3,0.837477]
[1736649362402,0.211,3291.1,3290.3,2.964927]
[1736649362748,0.211,3291.1,3290.3,0.837477]
[1736649364171,2.33796,3291.1,3290.3,0.837477]
[1736649364907,2.12696,3291.1,3290.3,0.837477]
[1736649365101,2.33796,3291.1,3290.3,6.157477]
[1736649365404,2.33796,3291.1,3290.4,0.81186683]
[1736649366803,2.12702,3291.0,3290.4,0.81186683]
[1736649368011,0.8315,3290.9,3290.4,0.81186683]
[1736649370961,0.8315,3290.9,3290.4,6.13186683]
[1736649371661,2.95859,3290.9,3290.4,5.32]
[1736649373914,2.12714,3290.8,3290.4,5.32]
[1736649374281,0.8315,3290.7,3290.4,5.32]
[1736649374808,2.12732,3290.6,3290.4,5.32]
[1736649375196,2.12733,3290.5,3290.4,5.32]
[1736649375358,2.95883,3290.5,3290.4,5.32]
[1736649380015,2.95883,3290.5,3290.1,3.0]
[1736649380713,3.16983,3290.5,3290.1,3.0]
[1736649384417,1.0425,3290.5,3290.1,3.0]
[1736649384567,2.53263156,3291.1,3290.1,3.0]
[1736649384568,0.7547,3291.0,3290.2,0.83579177]
[1736649384776,0.211,3290.9,3290.2,2.96331177]
[1736649385000,0.7547,3291.0,3290.4,0.015]
[1736649385316,0.7547,3291.0,3290.6,0.0075]
[1736649385519,2.88151,3291.4,3290.9,1.19878412]
[1736649385820,0.7547,3291.6,3290.9,4.19878412]
[1736649386318,0.7547,3291.9,3291.2,0.7904]
[1736649386517,0.7547,3291.9,3291.3,0.04538303]
[1736649386668,0.7547,3291.9,3291.3,1.21378412]
[1736649389530,0.211,3292.4,3291.8,0.8054]
[1736649391939,0.211,3292.4,3291.8,6.1254]
[1736649392238,0.211,3292.4,3291.9,3.0]
[1736649393401,2.12626,3292.2,3291.8,5.32]
[1736649393724,0.7735,3292.0,3291.8,5.32]
[1736649394830,2.12643,3291.9,3291.8,5.32]
[1736649396744,2.93223,3291.9,3291.8,5.32]
[1736649397551,2.12664,3291.6,3291.1,3.0]
[1736649397743,0.211,3291.5,3291.1,3.0]
[1736649400651,0.7595,3291.4,3291.1,3.0]
[1736649401752,1.069214,3291.4,3291.0,5.32]
[1736649401935,0.7595,3291.4,3290.3,5.32]
[1736649402106,2.12691,3291.2,3290.4,3.015]
[1736649402608,2.12691,3291.2,3290.4,3.0075]
[1736649402810,2.07691,3291.2,3290.4,3.0075]
[1736649403154,2.07691,3291.2,3290.4,0.0075]
[1736649403324,2.07691,3291.2,3290.4,0.015]
[1736649403861,2.07691,3291.2,3290.4,3.015]
[1736649404060,2.07691,3291.2,3290.4,4.14222989]
[1736649405956,0.211,3291.1,3290.4,4.14222989]
[1736649407067,0.211,3291.1,3290.4,9.46222989]
[1736649412168,0.7595,3291.0,3290.4,9.46222989]
[1736649412782,0.7595,3291.0,3290.4,8.32]
[1736649422560,0.814,3290.9,3290.4,5.32]
[1736649422867,2.94114,3290.8,3290.4,5.32]
[1736649429468,2.12727,3290.6,3290.4,5.32]
[1736649429771,2.12733,3290.5,3290.4,5.32]
[1736649431049,0.294127,3290.6,3290.4,5.32]
[1736649431254,2.12726,3290.7,3290.4,5.32]
[1736649431668,2.1273,3290.6,3290.4,5.32]
[1736649433856,2.1273,3290.6,3290.2,3.0]
[1736649437775,0.212,3290.5,3290.2,3.0]
[1736649440052,0.814,3290.8,3290.3,0.0075]
[1736649440273,0.212,3290.8,3290.4,1.08475]
[1736649440891,0.7699,3291.0,3290.4,1.08475]
[1736649441091,0.212,3291.1,3290.4,1.08475]
[1736649441549,0.212,3291.1,3290.5,0.0075]
[1736649442890,2.12702,3291.0,3290.5,0.0075]
[1736649443968,2.12702,3291.0,3290.2,3.0]
[1736649443969,2.1272,3290.7,3290.2,3.0]
[1736649445984,2.1272,3290.7,3290.2,8.32]
[1736649446184,2.3392,3290.7,3290.2,8.32]
[1736649446812,0.212,3290.7,3290.2,8.32]
[1736649448631,0.212,3290.7,3290.2,9.23115]
[1736649450229,2.33922,3290.7,3290.2,8.32]
[1736649451640,2.33556298,3290.7,3290.2,8.32]
[1736649455656,0.20834298,3290.7,3290.2,8.32]
[1736649455868,2.12728,3290.6,3290.2,8.32]
[1736649457230,0.20834298,3290.7,3290.2,8.32]
[1736649457431,2.33556298,3290.7,3290.2,8.32]
[1736649460225,2.12727,3290.6,3290.2,8.32]
[1736649461101,0.20834298,3290.7,3290.2,5.32]
[1736649461256,2.12736,3290.5,3290.2,5.32]
[1736649484306,0.20834298,3290.7,3290.2,5.32]
[1736649484307,2.33557298,3290.7,3290.2,5.32]
[1736649484642,0.20834298,3290.7,3290.2,5.32]
[1736649484841,0.20834298,3290.7,3290.4,0.8153]
[1736649486341,2.1271,3290.9,3290.4,0.8153]
[1736649486542,0.211,3290.8,3290.4,0.8153]
[1736649488296,2.12728,3290.6,3290.2,6.1353]
[1736649491561,0.7806,3290.7,3290.2,6.1353]
[1736649491768,2.12741,3290.4,3290.2,6.1353]
[1736649497298,0.211,3290.5,3290.2,6.1353]
[1736649497599,2.33834,3290.5,3290.2,6.1353]
[1736649500724,0.211,3290.5,3290.2,6.1353]
[1736649501031,0.8282,3291.3,3290.5,0.015]
[1736649501234,0.211,3291.7,3290.9,0.8075]
[1736649501374,0.211,3291.7,3291.2,0.0075]
[1736649501575,0.211,3291.7,3291.2,5.3275]
[1736649503375,2.1265,3291.8,3291.2,5.3275]
[1736649503594,2.3375,3291.8,3291.2,5.3275]
[1736649504396,2.3375,3291.8,3291.2,6.241]
[1736649511652,0.211,3291.8,3291.4,0.8075]
[1736649511946,0.21,3292.0,3291.4,6.1275]
[1736649512292,2.12616,3292.4,3291.7,0.0075]
[1736649512492,0.21,3292.3,3291.8,0.8075]
[1736649514598,0.21,3292.3,3291.9,0.0075]
[1736649517972,0.21,3292.3,3291.9,5.3275]
[1736649518972,0.21,3292.3,3292.0,0.7836]
[1736649519268,1.1992608,3293.1,3292.5,0.7836]
[1736649519435,0.21,3292.9,3292.5,0.7836]
[1736649520639,2.33578,3292.9,3292.5,0.7836]
[1736649522331,0.21,3292.9,3292.5,0.7836]
[1736649522482,1.1992608,3293.0,3292.4,5.32]
[1736649522483,2.12603,3292.6,3292.4,5.32]
[1736649523544,2.33586,3292.8,3292.4,5.32]
[1736649523889,2.12586,3292.8,3292.4,5.32]
[1736649524058,0.21,3292.7,3292.4,5.32]
[1736649527655,2.33592,3292.7,3292.4,5.32]
[1736649529380,0.21,3292.7,3292.4,5.32]
[1736649529539,2.12604,3292.6,3292.4,5.32]
[1736649529979,0.21,3292.7,3292.4,5.32]
[1736649530181,2.94224,3292.5,3292.4,5.32]
[1736649531589,2.12604,3292.5,3292.4,5.32]
[1736649532994,2.12604,3292.5,3292.1,6.1036]
[1736649535388,2.12604,3292.5,3292.1,5.32]
[1736649542808,1.0262,3292.7,3292.1,5.32]
[1736649543009,3.15214,3292.7,3292.1,5.32]
[1736649543476,2.12601,3292.6,3292.1,5.32]
[1736649548220,1.0262,3292.7,3292.1,5.32]
[1736649549183,2.12597,3292.6,3292.1,5.32]
[1736649549502,2.56111308,3292.6,3292.1,5.32]
[1736649550203,0.21,3292.5,3292.1,5.32]
[1736649554150,0.21,3292.5,3292.1,5.35037384]
[1736649554659,0.21,3292.5,3292.2,0.0075]
[1736649555740,0.21,3292.5,3292.1,5.35037384]
[1736649556059,0.8144,3292.4,3292.1,5.32]
[1736649556356,0.21,3292.5,3292.1,5.32]
[1736649557515,0.525039,3292.5,3292.1,5.32]
[1736649558644,0.21,3292.5,3292.1,5.32]
[1736649564285,0.21,3292.4,3292.1,5.32]
[1736649575475,2.12605,3292.5,3292.1,5.32]
[1736649575813,0.208,3292.3,3292.1,5.32]
[1736649577192,0.208,3292.6,3292.2,6.112873]
[1736649577495,0.208,3292.7,3292.3,0.0075]
[1736649578411,0.208,3292.7,3292.3,0.03787039]
[1736649578602,2.12578,3292.9,3292.3,0.03787039]
[1736649578825,0.208,3292.8,3292.3,0.03787039]
[1736649578989,0.208,3292.8,3292.3,0.0075]
[1736649579399,0.8236,3292.7,3292.2,6.0825]
[1736649579631,2.12598,3292.6,3292.2,6.0825]
[1736649583695,1.0316,3292.7,3292.2,5.32]
[1736649583895,2.12614,3292.4,3292.2,5.32]
[1736649585993,2.33414,3292.4,3292.2,5.32]
[1736649586999,0.208,3292.4,3292.2,5.32]
[1736649587396,2.33412,3292.4,3292.2,5.32]
[1736649592239,0.208,3292.4,3292.2,5.32]
[1736649597772,0.208,3292.3,3292.2,5.32]
[1736649598674,0.20434242,3292.3,3292.2,5.32]
[1736649621508,0.208,3292.4,3292.2,5.32]
[1736649627193,0.208,3292.3,3292.2,5.32]
[1736649632096,0.25450899,3292.3,3292.2,5.32]
[1736649636414,1.29407089,3292.3,3291.8,5.32]
[1736649636612,1.1992608,3292.2,3291.8,5.32]
[1736649636815,0.8015,3291.9,3291.8,5.32]
[1736649637228,0.84777901,3291.9,3291.8,5.32]
[1736649639920,1.05577901,3291.9,3291.8,5.32]
[1736649641936,0.25427901,3291.9,3291.8,5.32]
[1736649651541,2.38070901,3291.9,3291.8,5.32]
[1736649656769,2.12699,3291.1,3290.7,9.14431716]
[1736649656949,0.208,3291.0,3290.7,9.14431716]
[1736649657138,0.208,3290.9,3290.7,5.32]
[1736649657546,0.04516362,3290.8,3290.7,5.32]
[1736649657727,0.208,3290.9,3290.7,5.32]
[1736649658362,2.33509,3290.9,3290.7,5.32]
[1736649658783,0.04513919,3290.8,3290.7,5.32]
[1736649660331,2.17227919,3290.8,3290.7,5.32]
[1736649660533,3.18540711,3290.8,3290.7,5.32]
[1736649664689,2.12737,3290.5,3290.2,5.32]
[1736649665051,0.04481252,3290.4,3290.2,5.32]
[1736649678696,2.17222252,3290.4,3290.2,5.32]
[1736649679966,0.04481252,3290.4,3290.2,5.32]
[1736649680369,2.12729,3290.6,3290.2,5.32]
[1736649680700,0.04384665,3290.3,3290.2,5.32]
[1736649680873,2.12729,3290.6,3290.2,5.32]
[1736649681206,2.53745508,3290.6,3290.2,5.32]
[1736649681503,0.04399112,3290.5,3290.2,5.32]
[1736649681863,0.208,3290.4,3290.2,5.32]
[1736649682266,0.04384665,3290.3,3290.2,5.32]
[1736649686078,0.208,3290.4,3290.2,5.32]
[1736649686582,0.04386098,3290.3,3290.2,5.32]
[1736649687682,0.208,3290.4,3290.2,5.32]
[1736649688105,0.04386098,3290.3,3290.2,5.32]
[1736649699437,0.04386098,3290.3,3290.2,6.5192608]
[1736649699734,0.04386098,3290.3,3290.2,7.9391261]
[1736649699897,0.04386098,3290.3,3290.2,6.7398653]
[1736649700098,0.209,3290.4,3290.2,6.7398653]
[1736649700512,0.209,3290.4,3290.2,5.32]
[1736649700810,0.0431687,3290.3,3290.2,5.32]
[1736649734009,0.7676,3291.0,3290.3,3.0075]
[1736649734215,0.208,3291.0,3290.7,0.7862]
[1736649734423,2.89447,3291.3,3290.8,0.03038465]
[1736649734424,0.04168651,3290.9,3290.8,0.03038465]
[1736649734707,2.12651,3291.8,3291.0,3.7862]
[1736649734910,0.208,3291.6,3291.2,0.0075]
[1736649735088,0.208,3291.6,3291.4,0.0075]
[1736649735406,0.03800759,3291.5,3291.4,0.0075]
[1736649735571,0.208,3291.6,3291.4,0.0075]
[1736649736168,0.208,3291.6,3291.3,5.32]
[1736649736369,2.33462,3291.6,3291.3,5.32]
[1736649736599,2.568082,3291.6,3291.3,5.32]
[1736649736810,0.03842687,3291.5,3291.3,5.32]
[1736649738562,2.16512687,3291.5,3291.3,5.32]
[1736649738912,0.03842687,3291.5,3291.3,5.32]
[1736649739057,2.12675,3291.4,3291.3,5.32]
[1736649739255,2.44082769,3291.4,3291.3,5.32]
[1736649739508,2.44082769,3291.4,3290.9,3.0]
[1736649739509,2.47930278,3291.4,3290.9,3.0]
[1736649739691,2.16522509,3291.4,3290.9,3.0]
[1736649740011,2.16522509,3291.4,3290.9,3.03038502]
[1736649740299,0.208,3291.3,3290.9,3.03038502]
[1736649740895,0.03828377,3291.2,3290.9,3.03038502]
[1736649742566,0.24628377,3291.2,3290.9,3.0]
[1736649742773,0.208,3291.2,3291.0,0.95192608]
[1736649743191,0.03790156,3291.1,3291.0,0.95192608]
[1736649743597,0.208,3291.2,3291.0,0.95192608]
[1736649743960,0.03790156,3291.1,3291.0,0.95192608]
[1736649744393,0.208,3291.2,3291.0,0.95192608]
[1736649744797,0.03790156,3291.1,3291.0,0.95192608]
[1736649745308,0.208,3291.2,3291.0,0.95192608]
[1736649745514,0.03790156,3291.1,3291.0,0.95192608]
[1736649746111,0.208,3291.2,3291.0,0.95192608]
[1736649747312,0.03823883,3291.1,3291.0,0.95192608]
[1736649747499,0.208,3291.2,3291.0,0.95192608]
[1736649747699,0.03823883,3291.1,3291.0,0.95192608]
[1736649748216,0.208,3291.2,3291.0,0.95192608]
[1736649749016,0.2043442,3291.2,3291.0,0.95192608]
[1736649750489,0.2043442,3291.2,3290.9,3.03038355]
[1736649750911,0.03823883,3291.1,3291.0,0.015]
[1736649751113,0.2043442,3291.2,3291.0,0.015]